bitfinex-derivatives/quotes_BNBF0:USTF0_20250708
["timestamp","ask_amount","ask_price","bid_price","bid_amount"]
[1751947864927,2.72291072,659.68,659.16,1.801]
[1751947865127,1.70501255,659.68,659.16,1.801]
[1751947867034,1.70501255,659.68,659.15,0.26387425]
[1751947869630,1.70501255,659.67,659.15,0.26387425]
[1751947869933,1.70501255,659.67,659.16,1.584]
[1751947873531,1.70501255,659.64,659.16,1.584]
[1751947877835,1.70501255,659.65,659.16,1.584]
[1751947879238,1.70501255,659.64,659.16,1.584]
[1751947879639,1.70501255,659.65,659.16,1.584]
[1751947879839,2.72325336,659.65,659.16,1.584]
[1751947880134,1.70501255,659.65,659.16,1.584]
[1751947880337,1.70501255,659.64,659.16,1.584]
[1751947882840,2.30840759,659.68,659.16,1.584]
[1751947883039,1.70316753,659.64,659.16,1.584]
[1751947884246,1.70316753,659.63,659.16,1.584]
[1751947887642,1.70316753,659.62,659.16,1.584]
[1751947889150,1.70316753,659.63,659.16,1.584]
[1751947890751,1.70316753,659.62,659.16,1.584]
[1751947892053,1.70316753,659.64,659.16,1.584]
[1751947893551,1.70316753,659.63,659.16,1.584]
[1751947893951,4.01277705,659.64,659.16,1.584]
[1751947894155,1.01824081,659.63,659.16,1.584]
[1751947894350,1.70316753,659.64,659.16,1.584]
[1751947899157,1.70316753,659.63,659.16,1.584]
[1751947901860,1.70316753,659.61,659.16,1.584]
[1751947903857,1.70316753,659.6,659.16,1.584]
[1751947908368,1.70316753,659.61,659.16,1.584]
[1751947909365,1.70316753,659.6,659.16,1.584]
[1751947910765,1.70316753,659.6,659.15,2.53048911]
[1751947913572,1.70316753,659.6,659.15,0.26387425]
[1751947914472,1.70316753,659.6,659.15,2.53048911]
[1751947914873,1.70316753,659.6,659.16,1.692]
[1751947915575,1.70316753,659.6,659.16,3.95861486]
[1751947917074,1.70316753,659.59,659.16,3.95861486]
[1751947917571,2.31137019,659.69,659.16,3.95861486]
[1751947917775,1.70536698,659.59,659.16,3.95861486]
[1751947919377,1.70536698,659.6,659.16,1.692]
[1751947921569,2.99736078,659.6,659.16,1.692]
[1751947921775,1.70536698,659.6,659.16,1.692]
[1751947925479,1.70536698,659.61,659.16,1.692]
[1751947928579,1.70536698,659.65,659.16,1.692]
[1751947929376,1.70536698,659.64,659.16,1.692]
[1751947932379,2.72537174,659.64,659.16,1.692]
[1751947932681,1.70536698,659.65,659.16,1.692]
[1751947938686,1.70536698,659.63,659.16,1.692]
[1751947940189,5.68548028,660.5,659.16,1.692]
[1751947940190,1.70536698,659.62,659.16,1.692]
[1751947940784,1.70536698,659.63,659.16,1.692]
[1751947942388,1.70536698,659.61,659.16,1.692]
[1751947942785,1.70536698,659.58,659.16,1.692]
[1751947943387,1.70536698,659.59,659.16,1.692]
[1751947944591,1.70536698,659.62,659.16,1.692]
[1751947945792,1.70536698,659.59,659.16,1.692]
[1751947945992,1.70536698,659.58,659.16,1.692]
[1751947947691,2.72538245,659.58,659.16,1.692]
[1751947947996,1.70536698,659.58,659.16,1.692]
[1751947948494,1.70536698,659.59,659.16,1.692]
[1751947948991,1.70536698,659.57,659.16,1.692]
[1751947949593,1.70536698,659.58,659.16,1.692]
[1751947949995,1.70536698,659.57,659.16,1.692]
[1751947952297,1.70536698,659.58,659.16,1.692]
[1751947954197,1.70536698,659.6,659.16,1.692]
[1751947956295,4.01594293,659.6,659.16,1.692]
[1751947956501,1.01939364,659.59,659.16,1.692]
[1751947956700,1.70536698,659.6,659.16,1.692]
[1751947961800,1.70536698,659.62,659.16,1.692]
[1751947964001,1.70536698,659.61,659.18,0.26388125]
[1751947964801,1.70536698,659.62,659.18,0.26388125]
[1751947971711,1.70536698,659.61,659.18,0.26388125]
[1751947974516,1.70536698,659.67,659.19,2.014]
[1751947974714,1.70536698,659.6,659.19,2.014]
[1751947975018,1.70536698,659.65,659.19,2.014]
[1751947977913,4.01573354,659.65,659.19,2.014]
[1751947978218,2.31036656,659.64,659.19,2.014]
[1751947978513,1.70536698,659.65,659.19,2.014]
[1751947982324,2.9963399,659.65,659.19,2.014]
[1751947982520,1.70536698,659.65,659.19,2.014]
[1751947984427,1.70536698,659.61,659.19,2.014]
[1751947984723,1.70536698,659.59,659.19,2.014]
[1751947987928,1.70536698,659.57,659.19,2.014]
[1751947988425,1.70536698,659.56,659.19,2.014]
[1751947988728,1.70536698,659.57,659.19,2.014]
[1751947992726,1.70536698,659.49,659.19,2.014]
[1751947993025,3.41128817,659.74,659.19,2.014]
[1751947993026,1.70536698,659.47,659.19,2.014]
[1751947994129,1.70536698,659.5,659.19,2.014]
[1751947994829,1.70536698,659.48,659.19,2.014]
[1751947996238,1.70536698,659.49,659.19,2.014]
[1751947998542,1.70536698,659.5,659.19,2.014]
[1751947999337,0.45398208,659.62,659.19,2.014]
[1751947999338,1.70536698,659.51,659.19,2.014]
[1751947999937,1.70233891,659.51,659.19,2.014]
[1751948001543,0.45391578,659.63,659.19,2.014]
[1751948001544,1.70233891,659.52,659.19,2.014]
[1751948004143,1.70233891,659.53,659.19,2.014]
[1751948004645,1.70233891,659.54,659.19,2.014]
[1751948005247,1.70233891,659.55,659.19,2.014]
[1751948006641,1.70233891,659.55,659.09,0.26390927]
[1751948007647,1.70233891,659.61,659.09,0.26390927]
[1751948007943,1.70233891,659.64,659.09,0.26390927]
[1751948008743,1.70233891,659.63,659.09,0.26390927]
[1751948009743,1.70233891,659.63,659.1,2.092]
[1751948013548,1.70233891,659.64,659.1,2.092]
[1751948015848,1.70233891,659.63,659.1,2.092]
[1751948017548,1.70233891,659.59,659.1,2.092]
[1751948019944,1.70233891,659.57,659.1,2.092]
[1751948020148,1.70233891,659.59,659.1,2.092]
[1751948022549,2.30719015,659.62,659.1,2.092]
[1751948022550,1.70233891,659.58,659.1,2.092]
[1751948023151,2.71998631,659.58,659.1,2.092]
[1751948023349,1.70233891,659.58,659.1,2.092]
[1751948025649,1.70233891,659.57,659.1,2.092]
[1751948029960,1.70233891,659.55,659.1,2.092]
[1751948031055,1.70233891,659.54,659.1,2.092]
[1751948032259,1.70233891,659.53,659.1,2.092]
[1751948034356,1.70233891,659.52,659.1,2.092]
[1751948036864,1.70233891,659.5,659.1,2.092]
[1751948038859,1.70233891,659.5,659.09,0.26390927]
[1751948039266,1.70233891,659.49,659.09,0.26390927]
[1751948041264,1.70233891,659.49,659.1,2.188]
[1751948042766,1.70233891,659.51,659.1,2.188]
[1751948046368,1.70233891,659.5,659.1,2.188]
[1751948047063,4.01196299,659.5,659.1,2.188]
[1751948047368,2.30962408,659.49,659.1,2.188]
[1751948047563,1.70233891,659.5,659.1,2.188]
[1751948049365,1.70233891,659.49,659.1,2.188]
[1751948051265,1.70233891,659.48,659.1,2.188]
[1751948052870,1.70233891,659.47,659.1,2.188]
[1751948053470,1.70233891,659.46,659.1,2.188]
[1751948054669,1.70233891,659.47,659.1,2.188]
[1751948062183,1.70233891,659.51,659.1,2.188]
[1751948062382,1.70233891,659.52,659.1,2.188]
[1751948069683,1.70233891,659.53,659.1,2.188]
[1751948071086,1.70233891,659.52,659.1,2.188]
[1751948071784,1.70233891,659.53,659.1,2.188]
[1751948073794,1.70233891,659.52,659.1,2.188]
[1751948075287,1.70233891,659.53,659.1,2.188]
[1751948075491,1.70233891,659.52,659.1,2.188]
[1751948079391,4.01406354,659.52,659.1,2.188]
[1751948079594,1.01996232,659.51,659.1,2.188]
[1751948079795,1.70233891,659.52,659.1,2.188]
[1751948081498,1.70233891,659.5,659.1,2.188]
[1751948087200,1.70233891,659.53,659.1,2.188]
[1751948088905,2.99326097,659.53,659.1,2.188]
[1751948089100,1.70233891,659.53,659.1,2.188]
[1751948089501,1.70233891,659.52,659.1,2.188]
[1751948092702,1.70233891,659.59,659.1,2.188]
[1751948093103,1.70233891,659.56,659.1,2.188]
[1751948095305,1.70233891,659.56,659.09,0.26390927]
[1751948099007,1.70233891,659.56,659.1,1.851]
[1751948101414,1.70233891,659.52,659.1,1.851]
[1751948101609,1.70233891,659.53,659.1,1.851]
[1751948102610,1.70233891,659.48,659.1,1.851]
[1751948105016,1.70233891,659.49,659.1,1.851]
[1751948108417,1.70233891,659.5,659.1,1.851]
[1751948109018,1.70233891,659.47,659.1,1.851]
[1751948110416,1.70233891,659.48,659.1,1.851]
[1751948111219,1.70233891,659.47,659.1,1.851]
[1751948113820,1.70233891,659.46,659.1,1.851]
[1751948114921,1.70233891,659.44,659.1,1.851]
[1751948116320,2.30906534,659.54,659.1,1.851]
[1751948116520,1.70317882,659.44,659.1,1.851]
[1751948117022,1.70317882,659.45,659.1,1.851]
[1751948118023,1.70317882,659.47,659.1,1.851]
[1751948118818,2.30906534,659.53,659.1,1.851]
[1751948119018,1.29037078,659.53,659.1,1.851]
[1751948119319,1.70317882,659.54,659.1,1.851]
[1751948119725,2.27419211,659.73,659.1,1.851]
[1751948119925,1.70306405,659.54,659.1,1.851]
[1751948127627,1.70306405,659.55,659.1,1.851]
[1751948128129,1.70306405,659.55,659.09,0.26390927]
[1751948128328,1.70306405,659.54,659.09,0.26390927]
[1751948129128,1.01850635,659.69,659.09,0.26390927]
[1751948129428,1.01852196,659.68,659.09,0.26390927]
[1751948129628,1.01852196,659.72,659.09,0.26390927]
[1751948129926,1.01852196,659.71,659.09,0.26390927]
[1751948130127,1.01852196,659.7,659.09,0.26390927]
[1751948130325,1.01852196,659.69,659.09,0.26390927]
[1751948130526,1.01852196,659.68,659.09,0.26390927]
[1751948130726,2.30859986,659.84,659.09,0.26390927]
[1751948130924,2.30859986,659.83,659.1,2.089]
[1751948131127,2.30859986,659.82,659.1,2.089]
[1751948131328,1.01852196,659.81,659.1,2.089]
[1751948131528,1.01852196,659.8,659.1,2.089]
[1751948131726,1.01852196,659.79,659.1,2.089]
[1751948131927,1.01852196,659.78,659.1,2.089]
[1751948132128,1.01852196,659.77,659.1,2.089]
[1751948132331,1.01852196,659.76,659.1,2.089]
[1751948132530,1.01852196,659.75,659.1,2.089]
[1751948132729,1.01852196,659.74,659.1,2.089]
[1751948132928,1.01852196,659.85,659.1,2.089]
[1751948133128,1.01852196,659.84,659.1,2.089]
[1751948133432,1.01852196,659.83,659.1,2.089]
[1751948133628,1.70312738,659.58,659.1,2.089]
[1751948134330,1.70312738,659.6,659.1,2.089]
[1751948135928,1.70312738,659.58,659.1,2.089]
[1751948137334,1.70312738,659.66,659.1,2.089]
[1751948137739,1.70312738,659.68,659.1,2.089]
[1751948139141,1.70312738,659.65,659.1,2.089]
[1751948139341,1.70312738,659.59,659.1,2.089]
[1751948139540,1.70312738,659.58,659.1,2.089]
[1751948140838,1.70312738,659.59,659.1,2.089]
[1751948141343,1.70312738,659.62,659.1,2.089]
[1751948143844,1.70312738,659.66,659.1,2.089]
[1751948144143,0.45383884,659.77,659.1,2.089]
[1751948144144,1.70312738,659.68,659.1,2.089]
[1751948145443,2.2708365,659.85,659.1,2.089]
[1751948145444,1.70312738,659.69,659.1,2.089]
[1751948146645,1.70312738,659.7,659.1,2.089]
[1751948146846,1.70312738,659.69,659.1,2.089]
[1751948149353,1.70312738,659.7,659.1,2.089]
[1751948151053,1.70312738,659.67,659.1,2.089]
[1751948151553,1.70312738,659.68,659.1,2.089]
[1751948151753,1.70312738,659.67,659.1,2.089]
[1751948152359,1.70312738,659.68,659.1,2.089]
[1751948156659,1.70312738,659.66,659.1,2.089]
[1751948157961,1.70312738,659.67,659.1,2.089]
[1751948160267,1.70312738,659.68,659.1,2.089]
[1751948160665,1.70312738,659.67,659.1,2.089]
[1751948160965,2.760833,659.78,659.1,2.089]
[1751948161159,1.70060941,659.67,659.1,2.089]
[1751948161661,1.70060941,659.7,659.1,2.089]
[1751948162360,1.70060941,659.71,659.1,2.089]
[1751948166066,1.70060941,659.7,659.1,2.089]
[1751948166468,2.71893141,659.7,659.1,2.089]
[1751948166666,1.70060941,659.7,659.1,2.089]
[1751948171666,1.70060941,659.69,659.1,2.089]
[1751948172271,1.70060941,659.68,659.1,2.089]
[1751948173273,1.70060941,659.69,659.1,2.089]
[1751948173569,1.70060941,659.68,659.1,2.089]
[1751948176272,1.70060941,659.69,659.1,2.089]
[1751948176466,1.70060941,659.68,659.1,2.089]
[1751948177771,4.00719428,659.69,659.1,2.089]
[1751948177967,1.018322,659.68,659.1,2.089]
[1751948178168,1.70060941,659.69,659.1,2.089]
[1751948178371,1.70060941,659.68,659.1,2.089]
[1751948179975,1.70060941,659.68,659.09,0.26390927]
[1751948180171,1.70060941,659.67,659.09,0.26390927]
[1751948181771,2.71797545,659.67,659.09,0.26390927]
[1751948181973,1.70060941,659.67,659.09,0.26390927]
[1751948182379,1.70060941,659.66,659.09,0.26390927]
[1751948183276,1.70060941,659.64,659.09,0.26390927]
[1751948183778,1.70060941,659.64,659.1,1.628]
[1751948185577,1.70060941,659.63,659.1,1.628]
[1751948187379,1.70060941,659.62,659.1,1.628]
[1751948187780,1.70060941,659.61,659.1,1.628]
[1751948188181,1.70060941,659.62,659.1,1.628]
[1751948189380,1.70060941,659.61,659.1,1.628]
[1751948192985,0.45390206,659.72,659.1,1.628]
[1751948192986,1.70060941,659.6,659.1,1.628]
[1751948195087,1.70060941,659.59,659.1,1.628]
[1751948196484,1.70060941,659.58,659.1,1.628]
[1751948197690,1.70060941,659.59,659.1,1.628]
[1751948197990,1.70060941,659.56,659.1,1.628]
[1751948198885,1.70060941,659.58,659.1,1.628]
[1751948199386,1.70060941,659.56,659.1,1.628]
[1751948200490,1.70060941,659.55,659.1,1.628]
[1751948200792,1.70060941,659.56,659.1,1.628]
[1751948201389,1.70060941,659.55,659.1,1.628]
[1751948203686,1.70060941,659.55,659.09,0.26390927]
[1751948206589,1.70060941,659.55,659.1,1.889]
[1751948207589,1.70060941,659.51,659.1,1.889]
[1751948209393,1.70060941,659.52,659.1,1.889]
[1751948210095,2.71797545,659.52,659.1,1.889]
[1751948210295,1.70060941,659.52,659.1,1.889]
[1751948212192,3.67017404,659.76,659.1,1.889]
[1751948212193,1.70060941,659.53,659.1,1.889]
[1751948217299,1.70060941,659.52,659.1,1.889]
[1751948218297,1.70060941,659.53,659.1,1.889]
[1751948221400,1.70060941,659.54,659.1,1.889]
[1751948221800,1.70060941,659.53,659.1,1.889]
[1751948223699,1.70060941,659.54,659.1,1.889]
[1751948225810,1.70060941,659.53,659.1,1.889]
[1751948226415,1.70060941,659.55,659.1,1.889]
[1751948229312,1.70060941,659.54,659.1,1.889]
[1751948233316,1.70060941,659.56,659.1,1.889]
[1751948235115,1.70414591,659.56,659.1,1.889]
[1751948243124,1.70414591,659.55,659.1,1.889]
[1751948244625,1.70420661,659.55,659.1,1.889]
[1751948245127,1.70420661,659.54,659.1,1.889]
[1751948247324,1.70420661,659.53,659.1,1.889]
[1751948247927,1.70420661,659.53,659.1,2.15291627]
[1751948248329,1.70420661,659.52,659.1,2.15291627]
[1751948251936,1.70420661,659.51,659.1,2.15291627]
[1751948252135,1.70420661,659.5,659.1,2.15291627]
[1751948253041,1.70420661,659.51,659.1,2.15291627]
[1751948253241,1.70420661,659.5,659.1,1.889]
[1751948253436,1.70420661,659.47,659.1,1.889]
[1751948253838,1.70420661,659.5,659.1,1.889]
[1751948254143,1.70420661,659.47,659.1,1.889]
[1751948254539,1.70420661,659.48,659.1,1.889]
[1751948258447,1.70420661,659.49,659.1,1.889]
[1751948259045,4.01401667,659.5,659.1,1.889]
[1751948259246,4.01401667,659.49,659.1,1.889]
[1751948259545,1.0190732,659.48,659.1,1.889]
[1751948259744,1.70420661,659.5,659.1,1.889]
[1751948260445,1.70420661,659.52,659.1,1.889]
[1751948261942,1.70420661,659.53,659.1,1.889]
[1751948263241,1.70420661,659.52,659.1,1.889]
[1751948263544,1.70420661,659.53,659.1,1.889]
[1751948263844,1.70420661,659.52,659.1,1.889]
[1751948264644,1.70420661,659.52,659.0,0.2639433]
[1751948266049,2.2708365,659.69,659.0,0.2639433]
[1751948266345,1.70194135,659.52,659.0,0.2639433]
[1751948267847,1.70194135,659.52,659.01,1.501]
[1751948268449,1.70194135,659.53,659.01,1.501]
[1751948268745,1.70194135,659.52,659.01,1.501]
[1751948270447,1.70194135,659.49,659.01,1.501]
[1751948271248,1.70194135,659.5,659.01,1.501]
[1751948271553,1.70194135,659.48,659.01,1.501]
[1751948275054,1.70194135,659.5,659.01,1.501]
[1751948276556,1.70194135,659.54,659.01,1.501]
[1751948277757,1.70194135,659.53,659.01,1.501]
[1751948279260,1.70194135,659.55,659.01,1.501]
[1751948279964,4.00812547,659.55,659.01,1.501]
[1751948280161,2.30618412,659.54,659.01,1.501]
[1751948280362,1.70194135,659.55,659.01,1.501]
[1751948282463,1.70194135,659.54,659.01,1.501]
[1751948286165,1.70194135,659.53,659.01,1.501]
[1751948288770,1.70194135,659.54,659.01,1.501]
[1751948289273,1.70194135,659.53,659.01,1.501]
[1751948289473,1.70194135,659.52,659.01,1.501]
[1751948290272,1.70194135,659.53,659.01,1.501]
[1751948292377,1.70194135,659.52,659.01,1.501]
[1751948292874,1.70194135,659.53,659.01,1.501]
[1751948295275,1.70194135,659.52,659.01,1.501]
[1751948296675,2.71972898,659.52,659.01,1.501]
[1751948296874,1.70194135,659.52,659.0,0.2639433]
[1751948297581,1.70194135,659.51,659.0,0.2639433]
[1751948298777,1.70194135,659.5,659.0,0.2639433]
[1751948299580,1.70194135,659.5,659.01,1.737]
[1751948302383,1.70194135,659.49,659.01,1.737]
[1751948303578,1.70194135,659.48,659.01,1.737]
[1751948306583,1.70194135,659.51,659.01,1.737]
[1751948308379,1.70194135,659.52,659.01,1.737]
[1751948309983,1.70194135,659.51,659.01,1.737]
[1751948313881,0.45371068,659.64,659.01,1.737]
[1751948314081,2.76238046,659.65,659.01,1.737]
[1751948315083,1.01891682,659.75,659.01,1.737]
[1751948315285,1.01891682,659.74,659.01,1.737]
[1751948315484,1.01891682,659.73,659.01,1.737]
[1751948315782,1.01891682,659.72,659.0,0.2639433]
[1751948315987,1.01891682,659.71,659.0,0.2639433]
[1751948316184,1.01891682,659.7,659.0,0.2639433]
[1751948316389,1.01891682,659.69,659.0,0.2639433]
[1751948316587,1.01891682,659.68,659.0,0.2639433]
[1751948316887,1.01891682,659.67,659.0,0.2639433]
[1751948317185,1.01891682,659.66,659.0,0.2639433]
[1751948317388,1.01891682,659.65,659.0,0.2639433]
[1751948317684,1.01891682,659.75,659.0,0.2639433]
[1751948317887,1.01891682,659.74,659.0,0.2639433]
[1751948318088,1.01891682,659.73,659.0,0.2639433]
[1751948318387,1.01891682,659.72,659.0,0.2639433]
[1751948318588,1.01891682,659.71,659.0,0.2639433]
[1751948318788,1.01891682,659.7,659.0,0.2639433]
[1751948318989,1.01891682,659.69,659.0,0.2639433]
[1751948319289,1.01891682,659.68,659.0,0.2639433]
[1751948319589,1.01891682,659.67,659.01,1.776]
[1751948319889,1.01891682,659.66,659.01,1.776]
[1751948320086,1.01891682,659.65,659.01,1.776]
[1751948320284,1.01891682,659.64,659.01,1.776]
[1751948320487,1.01891682,659.63,659.01,1.776]
[1751948320689,1.01891682,659.73,659.01,1.776]
[1751948320989,1.01891682,659.72,659.01,1.776]
[1751948321190,1.01891682,659.71,659.01,1.776]
[1751948321390,1.01891682,659.7,659.01,1.776]
[1751948321590,1.01891682,659.69,659.01,1.776]
[1751948321787,1.01891682,659.68,659.01,1.776]
[1751948321992,1.01891682,659.67,659.01,1.776]
[1751948322187,1.01891682,659.66,659.01,1.776]
[1751948322489,1.01891682,659.65,659.01,1.776]
[1751948322792,1.01891682,659.64,659.01,1.776]
[1751948322988,1.01891682,659.63,659.01,1.776]
[1751948323193,1.01891682,659.62,659.01,1.776]
[1751948323495,1.01891682,659.72,659.01,1.776]
[1751948323694,1.01891682,659.71,659.01,1.776]
[1751948323897,1.01891682,659.7,659.01,1.776]
[1751948324098,1.28975296,659.73,659.01,1.776]
[1751948324099,1.01891682,659.69,659.01,1.776]
[1751948324299,1.01891682,659.68,659.01,1.776]
[1751948324497,1.01891682,659.67,659.01,1.776]
[1751948324696,1.01891682,659.66,659.01,1.776]
[1751948324901,1.01891682,659.65,659.01,1.776]
[1751948325097,1.01891682,659.64,659.01,1.776]
[1751948325298,1.01891682,659.63,659.01,1.776]
[1751948325599,1.01891682,659.62,659.01,1.776]
[1751948325796,1.01891682,659.61,659.01,1.776]
[1751948326000,1.01891682,659.72,659.01,1.776]
[1751948326200,1.01891682,659.71,659.01,1.776]
[1751948326397,1.01891682,659.7,659.01,1.776]
[1751948326598,1.01891682,659.69,659.01,1.776]
[1751948326797,1.01891682,659.68,659.01,1.776]
[1751948327002,1.01891682,659.67,659.01,1.776]
[1751948327204,1.01891682,659.66,659.01,1.776]
[1751948327403,1.01891682,659.65,659.01,1.776]
[1751948327600,1.01891682,659.64,659.01,1.776]
[1751948327799,1.01891682,659.63,659.01,1.776]
[1751948328001,1.01891682,659.62,659.01,1.776]
[1751948328306,1.01891682,659.61,659.01,1.776]
[1751948328505,1.01891682,659.6,659.01,1.776]
[1751948328706,1.01891682,659.7,659.01,1.776]
[1751948328905,1.01891682,659.69,659.01,1.776]
[1751948329203,1.01891682,659.68,659.01,1.776]
[1751948329402,1.01891682,659.67,659.01,1.776]
[1751948329607,1.01891682,659.66,659.01,1.776]
[1751948329804,1.01891682,659.65,659.01,1.776]
[1751948330007,1.01891682,659.64,659.01,1.776]
[1751948330207,1.01891682,659.63,659.01,1.776]
[1751948330509,1.01891682,659.62,659.01,1.776]
[1751948330704,1.01891682,659.61,659.01,1.776]
[1751948331008,1.01891682,659.7,659.01,1.776]
[1751948331208,1.01891682,659.69,659.01,1.776]
[1751948331410,1.70408113,659.45,659.01,1.776]
[1751948333515,1.70408113,659.44,659.01,1.776]
[1751948336122,1.70408113,659.37,659.01,1.776]
[1751948336323,1.70408113,659.38,659.01,1.776]
[1751948337419,1.70408113,659.39,659.01,1.776]
[1751948338022,1.70408113,659.38,659.01,1.776]
[1751948338226,1.70408113,659.39,659.01,1.776]
[1751948338621,1.70408113,659.4,659.01,1.776]
[1751948339223,1.70408113,659.39,659.01,1.776]
[1751948339425,0.45409249,659.52,659.01,1.776]
[1751948339426,1.70408113,659.41,659.01,1.776]
[1751948340026,1.70408113,659.4,659.01,1.776]
[1751948340325,1.70408113,659.41,659.01,1.776]
[1751948341923,1.70408113,659.42,659.01,1.776]
[1751948344326,1.70408113,659.43,659.01,1.776]
[1751948346330,1.70408113,659.44,659.01,1.776]
[1751948347729,1.70408113,659.45,659.01,1.776]
[1751948348629,1.70408113,659.44,659.01,1.776]
[1751948348832,1.70408113,659.45,659.01,1.776]
[1751948352035,1.70408113,659.44,659.01,1.776]
[1751948353235,1.70408113,659.45,659.01,1.776]
[1751948353935,1.70408113,659.44,659.01,1.776]
[1751948355537,1.70408113,659.45,659.01,1.776]
[1751948356131,1.70408113,659.41,659.01,1.776]
[1751948356833,0.4534904,659.53,659.01,1.776]
[1751948357036,1.70013319,659.41,659.01,1.776]
[1751948358033,1.70013319,659.36,659.01,1.776]
[1751948358434,1.70013319,659.37,659.01,1.776]
[1751948358732,1.70013319,659.36,659.01,1.776]
[1751948359236,1.70013319,659.37,659.01,1.776]
[1751948360637,1.70013319,659.37,658.92,0.26397934]
[1751948362135,1.70013319,659.39,658.92,0.26397934]
[1751948363742,1.70013319,659.41,658.92,0.26397934]
[1751948363940,1.70013319,659.45,658.93,2.127]
[1751948365841,1.70013319,659.48,658.93,2.127]
[1751948367642,1.70013319,659.49,658.93,2.127]
[1751948367842,1.70013319,659.51,658.93,2.127]
[1751948368743,1.70013319,659.5,658.93,2.127]
[1751948369541,1.70013319,659.51,658.93,2.127]
[1751948369740,1.70013319,659.53,658.93,2.127]
[1751948369947,1.70013319,659.51,658.93,2.127]
[1751948370143,1.70013319,659.32,658.93,2.127]
[1751948370342,1.70013319,659.29,658.93,2.127]
[1751948370545,1.70013319,659.28,658.93,2.127]
[1751948370941,2.7574145,659.45,658.93,2.127]
[1751948370942,0.45301957,659.44,658.93,2.127]
[1751948371146,2.7574145,659.47,658.93,2.127]
[1751948371345,1.74036529,659.47,658.93,2.127]
[1751948371543,1.70013319,659.48,658.93,2.127]
[1751948372843,1.70013319,659.47,658.93,2.127]
[1751948375551,1.70013319,659.46,658.93,2.127]
[1751948375951,1.70013319,659.45,658.93,2.127]
[1751948376252,1.70013319,659.42,658.93,2.127]
[1751948376648,1.70013319,659.41,658.93,2.127]
[1751948377353,1.70013319,659.4,658.93,2.127]
[1751948377753,2.15280013,659.4,658.93,2.127]
[1751948377950,1.70013319,659.4,658.93,2.127]
[1751948380956,1.70013319,659.41,658.93,2.127]
[1751948384062,0.45266694,659.53,658.93,2.127]
[1751948384063,1.70013319,659.42,658.93,2.127]
[1751948385068,1.70013319,659.41,658.93,2.127]
[1751948388170,1.70013319,659.4,658.93,2.127]
[1751948389065,1.70013319,659.4,658.79,0.26400137]
[1751948390572,1.70013319,659.2,658.79,0.26400137]
[1751948390971,1.70013319,659.19,658.79,0.26400137]
[1751948391574,1.70013319,659.2,658.79,0.26400137]
[1751948392073,1.70013319,659.2,658.8,1.851]
[1751948394071,1.70013319,659.19,658.8,1.851]
[1751948396073,1.70013319,659.2,658.8,1.851]
[1751948396774,1.01423029,659.21,658.8,1.851]
[1751948397074,1.70013319,659.22,658.8,1.851]
[1751948398274,1.70013319,659.23,658.8,1.851]
[1751948402375,1.70013319,659.24,658.8,1.851]
[1751948404678,2.71436348,659.24,658.8,1.851]
[1751948404875,1.70013319,659.24,658.8,1.851]
[1751948406274,1.70013319,659.26,658.8,1.851]
[1751948406679,1.70013319,659.27,658.8,1.851]
[1751948411079,1.70013319,659.28,658.8,1.851]
[1751948416284,1.70013319,659.27,658.8,1.851]
[1751948416484,1.70013319,659.26,658.8,1.851]
[1751948416979,1.70013319,659.27,658.8,1.851]
[1751948418183,1.70013319,659.28,658.8,1.851]
[1751948419887,1.70013319,659.27,658.8,1.851]
[1751948421782,1.70013319,659.26,658.8,1.851]
[1751948421987,1.70013319,659.29,658.8,1.851]
[1751948422287,1.70013319,659.3,658.8,1.851]
[1751948422587,1.70013319,659.29,658.8,1.851]
[1751948428988,1.70013319,659.28,658.8,1.851]